lending/lending_fUSD_20250516
["ID","MTS","AMOUNT","RATE_DAILY","PERIOD"]
[361303994,1747438258990,-781.98,0.00016712,2]
[361303995,1747438258999,-1101.66,0.00016712,2]
[361303996,1747438259008,-787.08,0.00016712,2]
[361303997,1747438259017,-1322.19,0.00016712,2]
[361303998,1747438259026,-572.81,0.00016712,2]
[361303999,1747438259035,-1135.54,0.00016712,2]
[361304000,1747438259044,-400.0,0.00016712,2]
[361304001,1747438259053,-6036.08,0.00016712,2]
[361304002,1747438259062,-973.19,0.00016712,2]
[361304003,1747438259071,-151.0,0.00016712,2]
[361304004,1747438259079,-151.0,0.00016712,2]
[361304005,1747438259089,-1772.99,0.00016712,2]
[361304006,1747438259098,-1005.03,0.00016712,2]
[361304007,1747438259107,-400.0,0.00016712,2]
[361304008,1747438259116,-1980.1,0.00016712,2]
[361304009,1747438259126,-400.0,0.00016712,2]
[361304010,1747438259135,-1964.57,0.00016712,2]
[361304011,1747438259145,-1643.05,0.00016712,2]
[361304012,1747438259154,-400.0,0.00016712,2]
[361304013,1747438259163,-400.0,0.00016712,2]
[361304014,1747438259172,-151.0,0.00016712,2]
[361304015,1747438259181,-6562.51,0.00016712,2]
[361304016,1747438259190,-3168.99,0.00016712,2]
[361304017,1747438259200,-400.0,0.00016712,2]
[361304018,1747438259208,-298.040371,0.00016712,2]
[361304019,1747438259218,-1170.14,0.00016712,2]
[361304020,1747438259227,-469.27,0.00016712,2]
[361304021,1747438259235,-1531.69,0.00016712,2]
[361304022,1747438259244,-1836.52,0.00016712,2]
[361304023,1747438259254,-604.85,0.00016712,2]
[361304024,1747438259262,-151.0,0.00016712,2]
[361304025,1747438259272,-250.794665,0.00016712,2]
[361304026,1747438259281,-417.243134,0.00016712,2]
[361304027,1747438259290,-151.0,0.00016712,2]
[361304028,1747438259299,-298.040371,0.00016712,2]
[361304029,1747438259308,-824.31,0.00016712,2]
[361304030,1747438259317,-151.0,0.00016712,2]
[361304031,1747438259327,-624.74,0.00016712,2]
[361304032,1747438259336,-250.794665,0.00016712,2]
[361304033,1747438259345,-1575.64,0.00016712,2]
[361304034,1747438259354,-417.243134,0.00016712,2]
[361304035,1747438259363,-1190.3,0.00016712,2]
[361304036,1747438259372,-651.44,0.00016712,2]
[361304037,1747438259381,-417.79,0.00016712,2]
[361304038,1747438259391,-151.0,0.00016712,2]
[361304039,1747438259400,-151.0,0.00016712,2]
[361304040,1747438259409,-400.0,0.00016712,2]
[361304041,1747438259418,-1500.74,0.00016712,2]
[361304042,1747438259426,-875.45,0.00016712,2]
[361304043,1747438259436,-2040.18,0.00016712,2]
[361304044,1747438259445,-3826.16,0.00016712,2]
[361304045,1747438259454,-400.0,0.00016712,2]
[361304046,1747438259464,-550.01,0.00016712,2]
[361304047,1747438259473,-502.08,0.00016712,2]
[361304048,1747438259482,-1064.29,0.00016712,2]
[361304049,1747438259491,-483.93,0.00016712,2]
[361304050,1747438259500,-400.0,0.00016712,2]
[361304051,1747438259511,-848.44,0.00016712,2]
[361304052,1747438259520,-3160.03,0.00016712,2]
[361304053,1747438259529,-400.0,0.00016712,2]
[361304054,1747438259538,-691.11,0.00016712,2]
[361304055,1747438259548,-400.0,0.00016712,2]
[361304056,1747438259557,-976.27,0.00016712,2]
[361304057,1747438259566,-400.0,0.00016712,2]
[361304058,1747438259576,-400.0,0.00016712,2]
[361304059,1747438259585,-400.0,0.00016712,2]
[361304060,1747438259594,-400.0,0.00016712,2]
[361304061,1747438259603,-612.02,0.00016712,2]
[361304062,1747438259612,-908.99,0.00016712,2]
[361304063,1747438259622,-1710.6,0.00016712,2]
[361304064,1747438259631,-400.0,0.00016712,2]
[361304065,1747438259640,-3419.28,0.00016712,2]
[361304066,1747438259649,-400.0,0.00016712,2]
[361304067,1747438259658,-858.5,0.00016712,2]
[361304068,1747438259667,-534.46,0.00016712,2]
[361304069,1747438259676,-464.14,0.00016712,2]
[361304070,1747438259685,-400.0,0.00016712,2]
[361304071,1747438259694,-400.0,0.00016712,2]
[361304072,1747438259703,-980.4,0.00016712,2]
[361304073,1747438259712,-400.0,0.00016712,2]
[361304074,1747438259725,-1137.6,0.00016712,2]
[361304075,1747438259735,-704.07,0.00016712,2]
[361304076,1747438259744,-2150.33,0.00016712,2]
[361304077,1747438259753,-400.0,0.00016712,2]
[361304078,1747438259763,-400.0,0.00016712,2]
[361304079,1747438259773,-3549.72,0.00016712,2]
[361304080,1747438259782,-10254.32,0.00016712,2]
[361304081,1747438259791,-5325.6,0.00016712,2]
[361304082,1747438259802,-518.22,0.00016712,2]
[361304083,1747438259812,-1213.28,0.00016712,2]
[361304084,1747438259821,-400.0,0.00016712,2]
[361304085,1747438259831,-3088.91,0.00016712,2]
[361304086,1747438259840,-1002.21,0.00016712,2]
[361304087,1747438259850,-1703.94,0.00016712,2]
[361304088,1747438259859,-14592.46,0.00016712,2]
[361304089,1747438259868,-6403.39,0.00016712,2]
[361304090,1747438259878,-3477.57,0.00016712,2]
[361304091,1747438259888,-2718.8,0.00016712,2]
[361304092,1747438259897,-302.29958709,0.00016712,2]
[361304093,1747438259906,-845.1,0.00016712,2]
[361304094,1747438259916,-790.82,0.00016712,2]
[361304095,1747438259925,-2385.26,0.00016712,2]
[361304096,1747438259934,-152.948424,0.00016712,2]
[361304097,1747438259943,-400.0,0.00016712,2]
[361304098,1747438259953,-414.05,0.00016712,2]
[361304099,1747438259962,-400.0,0.00016712,2]
[361304100,1747438259972,-1006.42,0.00016712,2]
[361304101,1747438259981,-400.0,0.00016712,2]
[361304102,1747438259991,-682.17,0.00016712,2]
[361304103,1747438260001,-1222.11,0.00016712,2]
[361304104,1747438260010,-1158.79,0.00016712,2]
[361304105,1747438260020,-400.0,0.00016712,2]
[361304106,1747438260030,-171.17,0.00016712,2]
[361304107,1747438260039,-1150.98,0.00016712,2]
[361304108,1747438260049,-1853.53,0.00016712,2]
[361304109,1747438260059,-2697.88,0.00016712,2]
[361304110,1747438260069,-221.8441031,0.00016712,2]
[361304111,1747438260078,-2852.31,0.00016712,2]
[361304112,1747438260087,-3039.27,0.00016712,2]
[361304113,1747438260096,-15831.97,0.00016712,2]
[361304114,1747438260106,-3608.52,0.00016712,2]
[361304115,1747438260115,-400.0,0.00016712,2]
[361304116,1747438260124,-1547.51,0.00016712,2]
[361304117,1747438260133,-721.12,0.00016712,2]
[361304118,1747438260142,-2196.46,0.00016712,2]
[361304119,1747438260151,-400.0,0.00016712,2]
[361304120,1747438260160,-995.39,0.00016712,2]
[361304121,1747438260169,-1249.51,0.00016712,2]
[361304122,1747438260178,-454.22,0.00016712,2]
[361304123,1747438260187,-5134.18,0.00016712,2]
[361304124,1747438260196,-682.76,0.00016712,2]
[361304125,1747438260205,-2710.69,0.00016712,2]
[361304126,1747438260214,-798.05,0.00016712,2]
[361304127,1747438260223,-1127.45,0.00016712,2]
[361304128,1747438260232,-682.66,0.00016712,2]
[361304129,1747438260242,-400.0,0.00016712,2]
[361304130,1747438260252,-10574.85,0.00016712,2]
[361304131,1747438260261,-400.0,0.00016712,2]
[361304132,1747438260271,-400.0,0.00016712,2]
[361304133,1747438260280,-400.0,0.00016712,2]
[361304134,1747438260289,-400.0,0.00016712,2]
[361304135,1747438260299,-400.0,0.00016712,2]
[361304136,1747438260308,-1414.45,0.00016712,2]
[361304137,1747438260317,-490.18,0.00016712,2]
[361304138,1747438260327,-400.0,0.00016712,2]
[361304139,1747438260336,-1070.85,0.00016712,2]
[361304140,1747438260346,-400.0,0.00016712,2]
[361304141,1747438260355,-151.0,0.00016712,2]
[361304142,1747438260364,-728.78,0.00016712,2]
[361304143,1747438260374,-400.0,0.00016712,2]
[361304144,1747438260383,-151.0,0.00016712,2]
[361304145,1747438260392,-400.0,0.00016712,2]
[361304146,1747438260402,-448.25,0.00016712,2]
[361304147,1747438260411,-400.0,0.00016712,2]
[361304148,1747438260420,-583.58,0.00016712,2]
[361304149,1747438260429,-3194.86,0.00016712,2]
[361304150,1747438260438,-1042.27,0.00016712,2]
[361304151,1747438260448,-10098.39,0.00016712,2]
[361304152,1747438260457,-920.68,0.00016712,2]
[361304153,1747438260466,-5674.05,0.00016712,2]
[361304154,1747438260476,-2643.51,0.00016712,2]
[361304155,1747438260486,-552.61,0.00016712,2]
[361304156,1747438260495,-400.0,0.00016712,2]
[361304157,1747438260504,-873.54,0.00016712,2]
[361304158,1747438260514,-390.8979691,0.00016712,2]
[361304159,1747438260523,-400.0,0.00016712,2]
[361304160,1747438260533,-584.66,0.00016712,2]
[361304161,1747438260542,-482.45,0.00016712,2]
[361304162,1747438260552,-152.6361382,0.00016712,2]
[361304163,1747438260561,-941.43,0.00016712,2]
[361304164,1747438260570,-400.0,0.00016712,2]
[361304165,1747438260579,-400.0,0.00016712,2]
[361304166,1747438260589,-538.46,0.00016712,2]
[361304167,1747438260599,-1126.82,0.00016712,2]
[361304168,1747438260608,-400.0,0.00016712,2]
[361304169,1747438260618,-7774.41,0.00016712,2]
[361304170,1747438260627,-3072.1,0.00016712,2]
[361304171,1747438260636,-603.06,0.00016712,2]
[361304172,1747438260645,-472.76,0.00016712,2]
[361304173,1747438260655,-1313.88,0.00016712,2]
[361304174,1747438260664,-1650.77,0.00016712,2]
[361304175,1747438260673,-7354.04,0.00016712,2]
[361304176,1747438260682,-1247.08,0.00016712,2]
[361304177,1747438260691,-400.0,0.00016712,2]
[361304178,1747438260700,-893.2,0.00016712,2]
[361304179,1747438260708,-400.0,0.00016712,2]
[361304180,1747438260720,-400.0,0.00016712,2]
[361304181,1747438260729,-400.0,0.00016712,2]
[361304182,1747438260739,-154.091666,0.00016712,2]
[361304183,1747438260748,-756.72,0.00016712,2]
[361304184,1747438260757,-2159.23,0.00016712,2]
[361304185,1747438260767,-1038.12,0.00016712,2]
[361304186,1747438260775,-564.04,0.00016712,2]
[361304187,1747438260784,-237.447965,0.00016712,2]
[361304188,1747438260795,-124148.18,0.00016712,2]
[361304189,1747438260804,-151.0,0.00016712,2]
[361304190,1747438260813,-151.0,0.00016712,2]
[361304191,1747438260823,-449.15,0.00016712,2]
[361304192,1747438260832,-602.31,0.00016712,2]
[361304193,1747438260841,-400.0,0.00016712,2]
[361304194,1747438260850,-400.0,0.00016712,2]
[361304195,1747438260859,-1865.14,0.00016712,2]
[361304196,1747438260869,-400.0,0.00016712,2]
[361304197,1747438260877,-414.62,0.00016712,2]
[361304198,1747438260887,-2199.99,0.00016712,2]
[361304199,1747438260895,-1226.52,0.00016712,2]
[361304200,1747438260904,-191.719148,0.00016712,2]
[361304201,1747438260913,-191.719148,0.00016712,2]
[361304202,1747438260922,-1057.41,0.00016712,2]
[361304203,1747438260931,-847.19,0.00016712,2]
[361304204,1747438260940,-400.0,0.00016712,2]
[361304205,1747438260949,-191.719148,0.00016712,2]
[361304206,1747438260958,-859.12,0.00016712,2]
[361304207,1747438260967,-191.719148,0.00016712,2]
[361304208,1747438260976,-1691.61,0.00016712,2]
[361304209,1747438260985,-400.0,0.00016712,2]
[361304210,1747438260995,-607.01,0.00016712,2]
[361304211,1747438261004,-489.56,0.00016712,2]
[361304212,1747438261013,-24373.06,0.00016712,2]
[361304213,1747438261022,-1820.27,0.00016712,2]
[361304214,1747438261031,-400.0,0.00016712,2]
[361304215,1747438261040,-1017.195915,0.00016712,2]
[361304216,1747438261049,-922.15,0.00016712,2]
[361304217,1747438261058,-1017.195915,0.00016712,2]
[361304218,1747438261067,-11903.15,0.00016712,2]
[361304219,1747438261077,-949.16,0.00016712,2]
[361304220,1747438261086,-1442.57,0.00016712,2]
[361304221,1747438261095,-1561.09,0.00016712,2]
[361304222,1747438261104,-1017.195915,0.00016712,2]
[361304223,1747438261113,-1017.195915,0.00016712,2]
[361304224,1747438261122,-400.0,0.00016712,2]
[361304225,1747438261131,-400.0,0.00016712,2]
[361304226,1747438261139,-591.17,0.00016712,2]
[361304227,1747438261149,-400.0,0.00016712,2]
[361304228,1747438261157,-2163.85,0.00016712,2]
[361304229,1747438261166,-526.58,0.00016712,2]
[361304230,1747438261175,-458.49,0.00016712,2]
[361304231,1747438261184,-1564.96,0.00016712,2]
[361304232,1747438261193,-1368.51,0.00016712,2]
[361304233,1747438261203,-400.0,0.00016712,2]
[361304234,1747438261212,-18699.87,0.00016712,2]
[361304235,1747438261221,-469.96,0.00016712,2]
[361304236,1747438261233,-400.0,0.00016712,2]
[361304237,1747438261243,-400.0,0.00016712,2]
[361304238,1747438261253,-3870.92,0.00016712,2]
[361304239,1747438261263,-400.0,0.00016712,2]
[361304240,1747438261272,-151.0,0.00016712,2]
[361304241,1747438261281,-400.0,0.00016712,2]
[361304242,1747438261290,-1414.64,0.00016712,2]
[361304243,1747438261299,-400.0,0.00016712,2]
[361304244,1747438261308,-3932.6,0.00016712,2]
[361304245,1747438261317,-651.27,0.00016712,2]
[361304246,1747438261327,-451.41,0.00016712,2]
[361304247,1747438261335,-2381.91,0.00016712,2]
[361304248,1747438261344,-959.62,0.00016712,2]
[361304249,1747438261354,-1259.02,0.00016712,2]
[361304250,1747438261363,-1024.43,0.00016712,2]
[361304251,1747438261372,-400.0,0.00016712,2]
[361304252,1747438261381,-400.0,0.00016712,2]
[361304253,1747438261389,-151.0,0.00016712,2]
[361304254,1747438261398,-151.0,0.00016712,2]
[361304255,1747438261407,-29894.28,0.00016712,2]
[361304256,1747438261416,-400.0,0.00016712,2]
[361304257,1747438261425,-400.0,0.00016712,2]
[361304258,1747438261435,-400.0,0.00016712,2]
[361304259,1747438261444,-569.02,0.00016712,2]
[361304260,1747438261453,-242.052524,0.00016712,2]
[361304261,1747438261463,-400.0,0.00016712,2]
[361304262,1747438261472,-400.0,0.00016712,2]
[361304263,1747438261481,-400.0,0.00016712,2]
[361304264,1747438261490,-314.51934064,0.00016712,2]
[361304265,1747438261500,-400.0,0.00016712,2]
[361304266,1747438261509,-1543.34,0.00016712,2]
[361304267,1747438261519,-8697.44,0.00016712,2]
[361304268,1747438261528,-1775.35,0.00016712,2]
[361304269,1747438261537,-400.0,0.00016712,2]
[361304270,1747438261546,-1104.49,0.00016712,2]
[361304271,1747438261555,-400.0,0.00016712,2]
[361304272,1747438261565,-400.0,0.00016712,2]
[361304273,1747438261574,-748.34,0.00016712,2]
[361304274,1747438261583,-178.77,0.00016712,2]
[361304275,1747438261593,-500.0,0.00016773,2]
[361304276,1747438261602,-500.0,0.00016773,2]
[361304277,1747438261613,-5483.42179693,0.00016795,2]
[361304278,1747438261623,-200.0,0.00016807,2]
[361304279,1747438261632,-250.0,0.00016807,2]
[361304280,1747438261641,-9088.19688164,0.00016822,2]
[361304281,1747438261651,-155.274088,0.00016825,2]
[361304282,1747438261660,-151.0,0.00016825,2]
[361304283,1747438261669,-151.0,0.00016825,2]
[361304284,1747438261679,-151.0,0.00016825,2]
[361304285,1747438261689,-151.0,0.00016825,2]
[361304286,1747438261698,-151.0,0.00016825,2]
[361304287,1747438261707,-151.0,0.00016825,2]
[361304288,1747438261722,-202.663497,0.00016825,2]
[361304289,1747438261731,-510.0,0.00016829,2]
[361304290,1747438261740,-283.15,0.0001684,2]
[361304291,1747438261749,-5483.42179693,0.00016886,2]
[361304292,1747438261759,-308.02548554,0.00016886,2]
[361304293,1747438261768,-695.758603,0.00016886,2]
[361304294,1747438261777,-799.85041718,0.00016886,2]
[361304295,1747438261787,-420.0,0.0001692,2]
[361304296,1747438261797,-814.9041481,0.00016934,2]
[361304297,1747438261807,-7592.0,0.00016959,2]
[361304298,1747438261816,-9034.0,0.00016959,2]
[361304299,1747438261825,-294.29,0.00016966,2]
[361304300,1747438261945,-500.0,0.00016973,2]
[361304301,1747438261962,-508.40250161,0.00016973,2]
[361304302,1747438261972,-5483.42179693,0.00016977,2]
[361304303,1747438261981,-500.0,0.00016985,2]
[361304304,1747438261990,-500.0,0.00016985,2]
[361304305,1747438261999,-500.0,0.00016985,2]
[361304306,1747438262008,-500.0,0.00016985,2]
[361304307,1747438262017,-1587.52,0.00016985,2]
[361304308,1747438262026,-1587.52,0.00016985,2]
[361304309,1747438262035,-1587.52,0.00016985,2]
[361304310,1747438262044,-1587.52,0.00016985,2]
[361304311,1747438262055,-151.0,0.00016986,2]
[361304312,1747438262064,-151.0,0.00016986,2]
[361304313,1747438262073,-162.352584,0.00016986,2]
[361304314,1747438262083,-151.0,0.00016986,2]
[361304315,1747438262092,-151.0,0.00016986,2]
[361304316,1747438262102,-151.0,0.00016986,2]
[361304317,1747438262112,-151.0,0.00016986,2]
[361304318,1747438262121,-151.0,0.00016986,2]
[361304319,1747438262131,-151.0,0.00016986,2]
[361304320,1747438262141,-151.0,0.00016986,2]
[361304321,1747438262151,-151.0,0.00016986,2]
[361304322,1747438262163,-296.4,0.00016986,2]
[361304323,1747438262172,-295.921388,0.00016986,2]
[361304324,1747438262181,-400.0,0.00016986,2]
[361304325,1747438262190,-151.0,0.00016986,2]
[361304326,1747438262199,-400.0,0.00016986,2]
[361304327,1747438262208,-151.0,0.00016986,2]
[361304328,1747438262218,-636.14,0.00016986,2]
[361304329,1747438262227,-151.0,0.00016986,2]
[361304330,1747438262236,-436.85,0.00016986,2]
[361304331,1747438262246,-705.91,0.00016986,2]
[361304332,1747438262255,-151.0,0.00016986,2]
[361304333,1747438262264,-400.0,0.00016986,2]
[361304334,1747438262273,-493.56,0.00016986,2]
[361304335,1747438262282,-400.0,0.00016986,2]
[361304336,1747438262291,-400.0,0.00016986,2]
[361304337,1747438262300,-400.0,0.00016986,2]
[361304338,1747438262310,-400.0,0.00016986,2]
[361304339,1747438262320,-400.0,0.00016986,2]
[361304340,1747438262329,-441.14,0.00016986,2]
[361304341,1747438262338,-400.0,0.00016986,2]
[361304342,1747438262348,-933.05,0.00016986,2]
[361304343,1747438262358,-151.0,0.00016986,2]
[361304344,1747438262368,-400.0,0.00016986,2]
[361304345,1747438262378,-500.0,0.00016986,2]
[361304346,1747438262387,-400.0,0.00016986,2]
[361304347,1747438262397,-444.25,0.00016986,2]
[361304348,1747438262407,-571.51,0.00016986,2]
[361304349,1747438262416,-623.88,0.00016986,2]
[361304350,1747438262426,-708.67,0.00016986,2]
[361304351,1747438262435,-151.0,0.00016986,2]
[361304352,1747438262445,-151.0,0.00016986,2]
[361304353,1747438262454,-151.0,0.00016986,2]
[361304354,1747438262463,-400.0,0.00016986,2]
[361304355,1747438262474,-151.0,0.00016986,2]
[361304356,1747438262483,-400.0,0.00016986,2]
[361304357,1747438262493,-151.0,0.00016986,2]
[361304358,1747438262502,-400.0,0.00016986,2]
[361304359,1747438262511,-594.19,0.00016986,2]
[361304360,1747438262521,-151.0,0.00016986,2]
[361304361,1747438262530,-400.0,0.00016986,2]
[361304362,1747438262539,-1136.83,0.00016986,2]
[361304363,1747438262549,-400.0,0.00016986,2]
[361304364,1747438262558,-400.0,0.00016986,2]
[361304365,1747438262567,-400.0,0.00016986,2]
[361304366,1747438262577,-456.68,0.00016986,2]
[361304367,1747438262586,-573.46,0.00016986,2]
[361304368,1747438262595,-354.03,0.00016986,2]
[361304369,1747438262605,-399.53653548,0.00016986,2]
[361304370,1747438262614,-151.0,0.00016986,2]
[361304371,1747438262624,-400.0,0.00016986,2]
[361304372,1747438262633,-400.0,0.00016986,2]
[361304373,1747438262642,-447.48,0.00016986,2]
[361304374,1747438262651,-400.0,0.00016986,2]
[361304375,1747438262660,-650.71,0.00016986,2]
[361304376,1747438262670,-400.0,0.00016986,2]
[361304377,1747438262679,-400.0,0.00016986,2]
[361304378,1747438262688,-536.16,0.00016986,2]
[361304379,1747438262696,-151.0,0.00016986,2]
[361304380,1747438262705,-151.0,0.00016986,2]
[361304381,1747438262715,-400.0,0.00016986,2]
[361304382,1747438262727,-513.39,0.00016986,2]
[361304383,1747438262736,-400.0,0.00016986,2]
[361304384,1747438262745,-400.0,0.00016986,2]
[361304385,1747438262754,-486.1,0.00016986,2]
[361304386,1747438262764,-400.0,0.00016986,2]
[361304387,1747438262774,-400.02,0.00016986,2]
[361304388,1747438262783,-490.02,0.00016986,2]
[361304389,1747438262792,-400.0,0.00016986,2]
[361304390,1747438262804,-400.0,0.00016986,2]
[361304391,1747438262814,-400.0,0.00016986,2]
[361304392,1747438262823,-400.0,0.00016986,2]
[361304393,1747438262832,-472.65,0.00016986,2]
[361304394,1747438262841,-400.0,0.00016986,2]
[361304395,1747438262851,-151.0,0.00016986,2]
[361304396,1747438262860,-417.89,0.00016986,2]
[361304397,1747438262869,-428.82,0.00016986,2]
[361304398,1747438262878,-703.26,0.00016986,2]
[361304399,1747438262888,-151.0,0.00016986,2]
[361304400,1747438262898,-618.72,0.00016986,2]
[361304401,1747438262907,-156.463033,0.00016986,2]
[361304402,1747438262916,-400.0,0.00016986,2]
[361304403,1747438262925,-400.0,0.00016986,2]
[361304404,1747438262934,-400.0,0.00016986,2]
[361304405,1747438262944,-400.0,0.00016986,2]
[361304406,1747438262953,-400.0,0.00016986,2]
[361304407,1747438262962,-400.0,0.00016986,2]
[361304408,1747438262971,-593.26,0.00016986,2]
[361304409,1747438262980,-400.0,0.00016986,2]
[361304410,1747438262989,-644.24,0.00016986,2]
[361304411,1747438262998,-902.76,0.00016986,2]
[361304412,1747438263007,-400.0,0.00016986,2]
[361304413,1747438263016,-400.0,0.00016986,2]
[361304414,1747438263026,-400.0,0.00016986,2]
[361304415,1747438263034,-400.0,0.00016986,2]
[361304416,1747438263044,-154.390768,0.00016986,2]
[361304417,1747438263053,-400.0,0.00016986,2]
[361304418,1747438263063,-400.0,0.00016986,2]
[361304419,1747438263073,-482.18,0.00016986,2]
[361304420,1747438263082,-400.0,0.00016986,2]
[361304421,1747438263092,-400.0,0.00016986,2]
[361304422,1747438263101,-400.0,0.00016986,2]
[361304423,1747438263111,-466.5,0.00016986,2]
[361304424,1747438263120,-400.0,0.00016986,2]
[361304425,1747438263130,-400.0,0.00016986,2]
[361304426,1747438263139,-400.0,0.00016986,2]
[361304427,1747438263148,-400.0,0.00016986,2]
[361304428,1747438263158,-400.0,0.00016986,2]
[361304429,1747438263167,-400.0,0.00016986,2]
[361304430,1747438263176,-400.0,0.00016986,2]
[361304431,1747438263186,-151.0,0.00016986,2]
[361304432,1747438263195,-151.0,0.00016986,2]
[361304433,1747438263204,-208.364268,0.00016986,2]
[361304434,1747438263214,-400.0,0.00016986,2]
[361304435,1747438263223,-400.0,0.00016986,2]
[361304436,1747438263233,-151.0,0.00016986,2]
[361304437,1747438263243,-281.595959,0.00016986,2]
[361304438,1747438263252,-405.46562996,0.00016986,2]
[361304439,1747438263262,-400.0,0.00016986,2]
[361304440,1747438263271,-904.58,0.00016986,2]
[361304441,1747438263280,-400.0,0.00016986,2]
[361304442,1747438263290,-400.0,0.00016986,2]
[361304443,1747438263299,-151.0,0.00016986,2]
[361304444,1747438263308,-151.0,0.00016986,2]
[361304445,1747438263317,-612.54,0.00016986,2]
[361304446,1747438263327,-400.0,0.00016986,2]
[361304447,1747438263336,-158.155376,0.00016986,2]
[361304448,1747438263346,-400.0,0.00016986,2]
[361304449,1747438263355,-400.0,0.00016986,2]
[361304450,1747438263365,-400.0,0.00016986,2]
[361304451,1747438263374,-400.0,0.00016986,2]
[361304452,1747438263383,-400.0,0.00016986,2]
[361304453,1747438263393,-151.0,0.00016986,2]
[361304454,1747438263403,-400.0,0.00016986,2]
[361304455,1747438263413,-151.0,0.00016986,2]
[361304456,1747438263422,-400.0,0.00016986,2]
[361304457,1747438263431,-400.0,0.00016986,2]
[361304458,1747438263441,-447.3,0.00016986,2]
[361304459,1747438263450,-659.39,0.00016986,2]
[361304460,1747438263460,-465.11,0.00016986,2]
[361304461,1747438263469,-151.0,0.00016986,2]
[361304462,1747438263479,-475.27,0.00016986,2]
[361304463,1747438263488,-400.0,0.00016986,2]
[361304464,1747438263498,-151.0,0.00016986,2]
[361304465,1747438263507,-151.0,0.00016986,2]
[361304466,1747438263517,-400.0,0.00016986,2]
[361304467,1747438263526,-1691.67,0.00016986,2]
[361304468,1747438263536,-400.0,0.00016986,2]
[361304469,1747438263545,-500.0,0.00016986,2]
[361304470,1747438263555,-371.38077958,0.00016986,2]
[361304471,1747438263564,-800.64,0.00016986,2]
[361304472,1747438263574,-1790.53,0.00016986,2]
[361304473,1747438263583,-464.51998306,0.00016986,2]
[361304474,1747438263593,-400.0,0.00016986,2]
[361304475,1747438263602,-520.62,0.00016986,2]
[361304476,1747438263612,-400.0,0.00016986,2]
[361304477,1747438263621,-467.91,0.00016986,2]
[361304478,1747438263631,-400.0,0.00016986,2]
[361304479,1747438263640,-400.0,0.00016986,2]
[361304480,1747438263649,-150.0,0.00016986,2]
[361304481,1747438263659,-400.0,0.00016986,2]
[361304482,1747438263668,-400.0,0.00016986,2]
[361304483,1747438263678,-493.6,0.00016986,2]
[361304484,1747438263687,-433.63,0.00016986,2]
[361304485,1747438263696,-466.248555,0.00016986,2]
[361304486,1747438263706,-400.0,0.00016986,2]
[361304487,1747438263717,-1074.01,0.00016986,2]
[361304488,1747438263728,-400.0,0.00016986,2]
[361304489,1747438263738,-400.0,0.00016986,2]
[361304490,1747438263747,-930.47,0.00016986,2]
[361304491,1747438263757,-1112.3,0.00016986,2]
[361304492,1747438263766,-202.663497,0.00016986,2]
[361304493,1747438263775,-522.16,0.00016986,2]